bitfinex/quotes_ETHUSD_20250822
["timestamp","ask_amount","ask_price","bid_price","bid_amount"]
[1755828515798,0.00230001,4279.8,4279.7,7.710728]
[1755828516001,0.00230001,4279.8,4279.7,3.702728]
[1755828516304,1e-08,4279.8,4279.7,3.702728]
[1755828516508,1e-08,4279.8,4279.7,6.03934037]
[1755828517575,1e-08,4279.8,4279.7,3.702728]
[1755828517988,1e-08,4279.8,4279.7,6.03934037]
[1755828518189,1e-08,4279.8,4279.7,3.702728]
[1755828518384,0.09900001,4279.8,4279.7,3.702728]
[1755828518572,1e-08,4279.8,4279.7,6.35574037]
[1755828518778,0.09900001,4279.8,4279.7,10.07086763]
[1755828519079,0.32300001,4279.8,4279.7,3.702728]
[1755828519604,0.32300001,4279.8,4279.7,0.702728]
[1755828520900,0.09900001,4279.8,4279.7,0.702728]
[1755828521608,1e-08,4279.8,4279.7,0.702728]
[1755828521936,1e-08,4279.8,4279.7,3.702728]
[1755828522107,1e-08,4279.8,4279.7,6.35574037]
[1755828522444,1e-08,4279.8,4279.7,7.80657928]
[1755828524519,1e-08,4279.8,4279.7,8.46657928]
[1755828530141,1e-08,4279.8,4279.7,12.46657928]
[1755828530453,1e-08,4279.8,4279.7,14.93557928]
[1755828530757,1e-08,4279.8,4279.7,12.46657928]
[1755828531858,1e-08,4279.8,4279.7,8.46657928]
[1755828532058,1e-08,4279.8,4279.7,12.46657928]
[1755828532246,1e-08,4279.8,4279.7,8.46657928]
[1755828532447,1e-08,4279.8,4279.7,27.27642996]
[1755828536427,1e-08,4279.8,4279.7,34.30722333]
[1755828536757,1e-08,4279.8,4279.7,19.49937265]
[1755828538764,1e-08,4279.8,4279.7,19.61617265]
[1755828539172,1e-08,4279.8,4279.7,15.61417265]
[1755828539347,1e-08,4279.8,4279.7,19.49837265]
[1755828540970,1e-08,4279.8,4279.7,15.49737265]
[1755828541356,1e-08,4279.8,4279.7,19.49637265]
[1755828542543,1e-08,4279.8,4279.7,22.08217265]
[1755828542750,1e-08,4280.8,4280.7,5.99606653]
[1755828543043,1e-08,4280.8,4280.7,19.80586655]
[1755828543271,1e-08,4280.8,4280.7,20.25216655]
[1755828543495,1e-08,4280.8,4280.7,20.34579955]
[1755828543838,1e-08,4280.8,4280.7,20.462259]
[1755828544347,1e-08,4280.8,4280.7,31.21768577]
[1755828544547,1e-08,4280.8,4280.7,35.21668577]
[1755828544780,1e-08,4280.8,4280.7,35.10022632]
[1755828544939,1e-08,4281.1,4281.0,5.99590282]
[1755828545275,1e-08,4281.1,4281.0,12.67344245]
[1755828545439,1e-08,4281.1,4281.0,13.11974245]
[1755828546146,1e-08,4281.1,4281.0,9.12074245]
[1755828546541,1e-08,4281.1,4281.0,12.35604245]
[1755828546954,1e-08,4281.1,4281.0,12.67244245]
[1755828547377,1e-08,4281.1,4281.0,13.21237345]
[1755828548761,1e-08,4281.1,4281.0,9.21437345]
[1755828549274,1e-08,4281.8,4281.7,5.99552093]
[1755828549569,1e-08,4281.8,4281.7,26.10122219]
[1755828549881,1e-08,4281.8,4281.7,26.57602219]
[1755828550045,1e-08,4281.8,4281.7,26.80132219]
[1755828550598,1e-08,4281.8,4281.7,26.80232219]
[1755828552585,0.02,4283.8,4282.7,2.99497559]
[1755828552586,1e-08,4282.8,4282.7,2.99497559]
[1755828552899,0.02,4283.8,4283.7,3.66]
[1755828553198,0.3107,4283.8,4283.7,9.99343051]
[1755828553403,0.3107,4283.8,4283.7,24.74885728]
[1755828553576,0.02,4283.8,4283.7,25.51225728]
[1755828553781,0.02,4283.8,4283.7,25.06255728]
[1755828554099,0.119,4283.8,4283.7,25.06355728]
[1755828554268,0.119,4283.8,4283.7,6.30513051]
[1755828554468,0.119,4283.8,4283.7,10.30713051]
[1755828555178,0.119,4283.8,4283.7,5.64513051]
[1755828555677,0.119,4283.8,4283.7,9.64913051]
[1755828556462,0.3443,4283.8,4283.7,9.64913051]
[1755828556702,0.119,4283.8,4283.7,9.64913051]
[1755828557075,0.02,4283.8,4283.7,9.64913051]
[1755828557496,0.02,4283.8,4283.7,13.43467014]
[1755828558504,0.02,4283.8,4283.7,12.66927014]
[1755828559004,0.02,4283.8,4283.7,10.30713051]
[1755828559005,0.119,4283.8,4283.7,10.30713051]
[1755828559305,0.02,4283.8,4283.7,10.59573051]
[1755828559608,0.02,4283.8,4283.7,11.07053051]
[1755828559792,0.02,4283.8,4283.7,10.30713051]
[1755828559977,0.02,4283.8,4283.7,6.30513051]
[1755828560177,0.119,4283.8,4283.7,24.40055728]
[1755828560577,0.02,4283.8,4283.7,26.97297048]
[1755828560783,0.02,4283.8,4283.7,27.44777048]
[1755828561298,0.02,4283.8,4283.7,11.92894371]
[1755828561499,0.02,4283.8,4283.7,26.68437048]
[1755828562004,0.0223,4283.8,4283.7,7.92894371]
[1755828562170,0.0223,4283.8,4283.7,0.48311727]
[1755828562371,0.2454,4283.8,4283.7,0.48311727]
[1755828562578,0.2454,4283.8,4283.7,0.17241727]
[1755828562783,0.2454,4283.8,4283.5,0.702028]
[1755828562998,0.0223,4283.8,4283.5,0.702028]
[1755828563209,0.2231,4283.7,4283.5,0.702028]
[1755828563406,0.0045,4283.6,4283.5,0.702028]
[1755828563595,0.2254,4283.6,4283.5,0.702028]
[1755828563990,0.2254,4283.6,4279.6,0.001]
[1755828563991,15.64082677,4283.6,4282.3,0.17563139]
[1755828564190,0.2209,4283.5,4281.8,0.702327]
[1755828564386,0.0066,4281.9,4281.8,0.702327]
[1755828564802,0.0066,4281.9,4281.8,3.03779339]
[1755828566714,0.0066,4281.9,4281.8,0.702327]
[1755828566920,0.0066,4281.9,4281.8,3.03779339]
[1755828567213,2.0213,4282.8,4281.9,2.33539112]
[1755828567512,2.0213,4282.8,4282.0,2.33534678]
[1755828567716,0.2253,4283.2,4281.8,17.75542677]
[1755828567905,0.2253,4283.2,4282.1,6.03748777]
[1755828568088,0.2253,4283.2,4282.3,2.33515236]
[1755828568287,0.2253,4283.2,4282.4,2.33513173]
[1755828568604,0.2253,4283.2,4282.6,2.33501621]
[1755828568916,1.796,4283.4,4282.7,2.33497399]
[1755828569215,1.796,4283.4,4282.8,2.35827028]
[1755828569417,0.02,4283.8,4283.2,2.33468554]
[1755828569620,0.02,4283.8,4283.1,2.3580917]
[1755828569797,0.099,4283.1,4282.7,3.702087]
[1755828570315,0.323,4283.1,4282.7,0.702087]
[1755828570518,0.224,4283.0,4282.6,3.0]
[1755828570694,0.1003,4282.7,4282.6,3.0]
[1755828571014,0.1003,4282.7,4282.6,0.702184]
[1755828573002,0.1003,4282.7,4282.0,2.33535299]
[1755828573320,0.1003,4282.7,4282.2,0.702261]
[1755828573499,0.1003,4282.7,4282.3,3.0]
[1755828573824,0.1003,4282.7,4282.2,0.702261]
[1755828574610,0.1003,4282.7,4281.9,3.0]
[1755828574927,0.1003,4282.7,4282.0,0.702301]
[1755828575713,0.1003,4282.7,4281.6,4.034]
[1755828575888,0.1003,4282.7,4281.7,3.0]
[1755828576102,0.1003,4282.7,4281.9,0.7023]
[1755828576311,14.75542677,4282.5,4281.1,0.001]
[1755828576491,1.796,4282.4,4281.5,0.001]
[1755828576696,0.1002,4281.6,4281.5,0.001]
[1755828578925,0.1012,4281.6,4281.5,0.001]
[1755828580995,0.1012,4281.6,4281.5,0.703417]
[1755828581218,0.1002,4281.6,4281.5,0.001]
[1755828581415,0.3239,4281.6,4281.5,0.001]
[1755828581602,2.1199,4281.6,4281.5,0.001]
[1755828582402,1.8962,4281.6,4281.5,0.001]
[1755828582610,5.9252,4281.6,4281.5,0.001]
[1755828582904,5.9252,4281.6,4281.5,0.703487]
[1755828588648,1.796,4281.6,4281.5,1.014187]
[1755828588944,1.796,4281.6,4281.5,1.443487]
[1755828589158,4.025,4281.7,4281.5,1.443487]
[1755828589724,4.023,4282.0,4281.6,0.4293]
[1755828590129,4.023,4282.0,4281.5,0.703487]
[1755828590332,1.797,4282.2,4281.5,0.703487]
[1755828590537,4.022,4281.9,4281.5,0.703487]
[1755828590732,4.022,4282.0,4281.8,0.3107]
[1755828591124,4.022,4282.0,4281.9,0.4293]
[1755828591443,1.797,4282.2,4281.9,0.74]
[1755828591610,4.022,4282.1,4281.9,0.3107]
[1755828591945,1.797,4282.2,4282.0,0.4293]
[1755828592243,1.797,4282.2,4282.1,0.74]
[1755828592424,5.8202,4282.2,4281.7,0.4293]
[1755828592612,5.8202,4282.2,4281.5,0.703487]
[1755828593946,5.8202,4282.2,4281.5,3.03907234]
[1755828594146,5.8202,4282.2,4281.5,0.703487]
[1755828594376,5.818,4282.2,4281.7,2.33551726]
[1755828594518,1.797,4282.2,4281.8,0.4293]
[1755828594845,5.815,4282.2,4282.1,0.3107]
[1755828595146,0.002,4282.8,4282.1,0.74]
[1755828595147,4.017,4282.4,4282.1,0.74]
[1755828595349,4.017,4282.4,4282.1,0.3107]
[1755828595660,0.2244,4282.2,4281.5,0.703487]
[1755828595869,0.2244,4282.2,4281.6,5.33556117]
[1755828596079,0.2244,4282.2,4281.7,5.33551043]
[1755828596382,4.017,4282.4,4282.1,0.3107]
[1755828597282,4.017,4282.3,4282.1,0.74]
[1755828597491,1.799,4282.8,4282.2,0.4293]
[1755828597842,4.016,4282.7,4282.2,0.4293]
[1755828598043,4.016,4282.7,4282.3,0.4293]
[1755828599079,4.016,4282.7,4282.4,0.702261]
[1755828599972,0.099,4282.5,4282.4,0.702261]
[1755828600565,4.016,4282.7,4282.4,0.702261]
[1755828600778,0.1003,4282.5,4282.4,0.702261]
[1755828601902,1.799,4282.8,4282.4,1.012961]
[1755828602200,4.012,4282.5,4282.4,0.702261]
[1755828602710,4.111,4282.5,4282.4,0.702261]
[1755828604493,4.3066,4282.5,4282.4,0.702261]
[1755828604868,4.012,4282.5,4282.4,0.702261]
[1755828605068,4.012,4282.5,4282.4,1.012961]
[1755828605270,4.012,4282.5,4282.4,1.442261]
[1755828605680,4.012,4282.5,4282.4,0.702261]
[1755828606869,4.0142,4282.5,4282.4,0.702261]
[1755828607797,4.0142,4282.5,4281.8,0.02]
[1755828607962,4.0142,4282.5,4281.9,0.702261]
[1755828608364,6.69067917,4282.3,4281.9,0.702261]
[1755828608619,0.0044,4282.0,4281.9,0.702261]
[1755828608764,4.0144,4282.0,4281.9,0.702261]
[1755828609390,4.009,4282.0,4281.9,0.702261]
[1755828609687,4.009,4282.0,4281.9,1.461761]
[1755828610057,1.799,4282.8,4281.9,1.004761]
[1755828610265,4.009,4282.7,4281.9,1.004761]
[1755828611265,4.009,4282.7,4281.9,0.702261]
[1755828611673,0.099,4282.0,4281.9,0.702261]
[1755828611977,4.106,4282.0,4281.9,0.702261]
[1755828612191,5.903,4282.0,4281.9,0.702261]
[1755828612687,5.804,4282.0,4281.9,0.702261]
[1755828613201,5.803,4282.0,4281.9,0.702261]
[1755828613781,1.797,4282.0,4281.9,1.004761]
[1755828613982,5.802,4282.0,4281.9,1.461761]
[1755828614362,0.002,4282.8,4281.9,1.461761]
[1755828614363,4.004,4282.1,4281.9,1.461761]
[1755828614564,4.004,4282.1,4282.0,0.457]
[1755828614778,4.004,4282.1,4282.0,0.7595]
[1755828615804,1.797,4282.7,4282.0,3.47657812]
[1755828616105,4.002,4282.6,4282.1,0.48035302]
[1755828616298,4.002,4282.6,4282.5,0.3025]
[1755828616682,4.002,4282.6,4282.5,0.7595]
[1755828618094,4.002,4282.6,4282.5,1.461748]
[1755828618681,1.797,4282.7,4282.5,1.461748]
[1755828618880,1.797,4282.7,4282.6,0.457]
[1755828619089,5.797,4282.7,4282.6,0.7595]
[1755828619781,5.797,4282.7,4282.6,1.461684]
[1755828621913,5.797,4282.7,4282.6,3.79671412]
[1755828622109,5.797,4282.7,4282.6,1.461684]
[1755828622310,5.796,4282.7,4282.6,3.79671412]
[1755828622607,3.999,4282.8,4282.7,2.33497559]
[1755828622826,0.002,4282.8,4282.7,3.09447559]
[1755828622986,0.002,4282.8,4282.7,6.73334007]
[1755828623187,0.002,4282.8,4282.7,7.36999032]
[1755828629723,0.002,4282.8,4282.7,8.07201832]
[1755828630995,0.002,4282.8,4282.7,14.76269749]
[1755828631612,0.002,4282.8,4282.7,18.75669749]
[1755828635623,0.002,4282.8,4282.7,12.06601832]
[1755828635825,0.002,4282.8,4282.7,18.75669749]
[1755828636191,0.002,4283.3,4283.2,2.99470302]
[1755828636389,0.002,4283.3,4283.2,17.28035249]
[1755828636594,0.002,4283.3,4283.2,17.73735249]
[1755828637029,0.002,4283.3,4283.2,18.43927149]
[1755828637620,1e-08,4283.3,4283.2,18.43927149]
[1755828642444,1e-08,4283.3,4283.2,18.73250643]
[1755828643038,1e-08,4283.3,4283.2,23.02250643]
[1755828643217,1e-08,4283.3,4283.2,21.69856543]
[1755828643411,1e-08,4283.3,4283.2,18.73250643]
[1755828643616,1e-08,4283.3,4283.2,21.33396543]
[1755828644035,1e-08,4283.3,4283.2,18.73250643]
[1755828644415,1e-08,4283.3,4283.2,18.73150643]
[1755828644624,1e-08,4283.3,4283.2,21.20679343]
[1755828644949,0.02,4284.8,4284.3,2.33409286]
[1755828645161,0.02,4284.8,4284.7,2.33388568]
[1755828645356,0.119,4284.8,4284.7,9.32588568]
[1755828645518,0.119,4284.8,4284.7,5.33388568]
[1755828645719,0.119,4284.8,4284.7,10.02764068]
[1755828646930,0.119,4284.8,4284.7,3.701755]
[1755828646931,0.3443,4284.8,4284.7,3.701755]
[1755828647542,0.3443,4284.8,4284.7,6.03564068]
[1755828647853,0.119,4284.8,4284.7,6.03564068]
[1755828649925,0.119,4284.8,4284.7,3.701755]
[1755828649926,0.3443,4284.8,4284.7,3.701755]
[1755828650321,0.3443,4284.8,4284.7,0.701755]
[1755828654068,0.119,4284.8,4284.7,0.701755]
[1755828654236,0.02,4284.8,4284.7,0.701755]
[1755828654564,0.02,4284.8,4284.7,3.03564068]
[1755828654720,0.02,4284.8,4284.7,0.72509385]
[1755828654922,0.02,4284.8,4284.7,3.05897953]
[1755828655141,0.02,4284.8,4284.7,3.03564068]
[1755828655339,0.02,4284.8,4284.7,3.05897953]
[1755828655525,0.02,4284.8,4284.7,6.80064068]
[1755828657657,0.02,4284.8,4284.7,6.33644068]
[1755828658162,0.02,4284.8,4284.7,6.03564068]
[1755828660656,0.02,4284.8,4284.7,6.80064068]
[1755828660863,0.02,4284.8,4284.7,6.33644068]
[1755828661058,0.02,4284.8,4284.7,6.03564068]
[1755828661358,0.022,4284.8,4284.7,6.03564068]
[1755828662563,0.022,4284.8,4284.7,6.80064068]
[1755828662731,0.022,4284.8,4284.7,13.49131985]
[1755828664940,0.022,4284.8,4284.7,15.47285046]
[1755828666045,0.022,4284.8,4284.7,8.78217129]
[1755828669056,0.022,4284.8,4284.7,15.47285046]
[1755828669380,0.022,4284.8,4284.7,16.13285046]
[1755828670440,0.022,4284.8,4284.7,20.12285046]
[1755828670641,0.022,4284.8,4284.7,13.43217129]
[1755828671987,0.3089,4284.8,4284.7,8.01717129]
[1755828672151,0.3089,4284.8,4284.7,6.03564068]
[1755828673285,0.3089,4284.8,4284.7,3.701755]
[1755828673971,0.3469,4284.8,4284.7,3.701755]
[1755828674274,0.3469,4284.8,4284.7,0.701755]
[1755828674615,0.3469,4284.8,4283.1,2.33574867]
[1755828674616,0.3469,4284.8,4283.2,0.17643494]
[1755828674895,6.69067917,4284.4,4283.6,0.701996]
[1755828675072,0.2844,4283.7,4283.6,0.701996]
[1755828675999,0.3249,4283.7,4283.6,0.701996]
[1755828677967,5.784,4284.3,4283.6,0.990096]
[1755828677968,1.795,4284.3,4283.6,0.990096]
[1755828678283,1.795,4284.3,4283.8,2.33437602]
[1755828678472,1.795,4284.3,4283.9,2.3342836]
[1755828678889,0.022,4284.8,4283.7,3.0]
[1755828679091,0.022,4284.8,4283.9,3.4515]
[1755828679281,0.022,4284.8,4284.7,0.2881]
[1755828679668,0.022,4284.8,4284.7,2.62198568]
[1755828679874,0.022,4284.8,4284.7,3.09682453]
[1755828681672,0.022,4284.8,4284.7,6.09682453]
[1755828681872,0.022,4284.8,4284.7,6.9165642]
[1755828682292,0.022,4284.8,4284.7,6.4650642]
[1755828682498,0.2454,4284.8,4284.7,3.0]
[1755828683115,0.022,4284.8,4284.7,5.33388568]
[1755828683817,0.022,4284.8,4284.7,3.0]
[1755828684882,0.2432,4284.8,4284.4,3.0]
[1755828685197,0.2432,4284.8,4284.7,0.701821]
[1755828686113,0.022,4284.8,4284.7,0.701821]
[1755828686303,0.023,4284.8,4284.7,0.701821]
[1755828686818,0.022,4284.8,4284.7,6.32380668]
[1755828687028,0.022,4284.8,4284.7,7.64108555]
[1755828689284,0.022,4284.8,4284.7,8.30108555]
[1755828689691,0.022,4284.8,4284.7,14.99176472]
[1755828690119,0.022,4284.8,4284.7,8.30108555]
[1755828690491,0.022,4284.8,4284.7,12.28908555]
[1755828690693,0.023,4284.8,4284.7,0.701821]
[1755828692192,0.022,4284.8,4284.7,0.701821]
[1755828693200,0.121,4284.8,4284.7,0.701821]
[1755828693542,0.121,4284.8,4283.4,3.988]
[1755828693543,0.345,4284.8,4283.4,3.988]
[1755828693838,0.224,4284.7,4284.3,0.701969]
[1755828693996,0.1003,4284.4,4284.3,0.701969]
[1755828694199,0.3231,4284.4,4283.3,0.001]
[1755828694426,0.3231,4284.4,4284.2,0.224]
[1755828694635,0.2228,4284.3,4284.2,0.224]
[1755828694936,0.3243,4284.3,4284.2,0.224]
[1755828695352,0.1015,4284.3,4283.3,2.33560235]
[1755828695517,0.3231,4284.3,4283.3,0.001]
[1755828695862,1.795,4284.2,4284.0,0.702044]
[1755828696050,0.1027,4284.1,4283.3,0.001]
[1755828696253,0.1027,4284.1,4283.4,3.702072]
[1755828696435,0.1027,4284.1,4283.4,0.702072]
[1755828701580,3.988,4284.0,4283.4,0.702072]
[1755828701750,0.1039,4283.5,4283.4,0.702072]
[1755828703337,1.795,4284.2,4283.4,0.3025]
[1755828703532,1.795,4284.2,4283.3,0.001]
[1755828703733,0.0967,4283.5,4283.4,0.702072]
[1755828705084,0.0967,4283.5,4283.3,0.001]
[1755828705981,5.784,4283.4,4283.3,0.001]
[1755828706278,5.8807,4283.4,4283.3,0.001]
[1755828706977,5.784,4283.4,4283.3,0.001]
[1755828707278,1.796,4283.4,4283.3,0.7685]
[1755828709881,1.796,4283.4,4283.3,0.3035]
[1755828710045,1.796,4283.4,4283.3,0.7685]
[1755828711082,1.796,4283.4,4283.3,3.10314851]
[1755828711654,1.796,4284.0,4283.3,0.7685]
[1755828711854,3.988,4284.0,4283.5,3.0]
[1755828712055,3.988,4284.0,4283.9,0.3025]
[1755828712583,3.988,4284.0,4283.9,0.7675]
[1755828712955,3.988,4284.0,4283.9,1.469546]
[1755828713184,3.99,4284.0,4283.9,1.469546]
[1755828714156,0.002,4284.0,4283.9,1.469546]
[1755828714776,0.002,4284.0,4283.9,1.004546]
[1755828714979,0.002,4284.0,4283.9,0.702046]
[1755828715686,0.0987,4284.0,4283.9,0.702046]
[1755828716988,0.0987,4284.0,4283.9,1.469546]
[1755828716989,0.002,4284.0,4283.9,1.469546]
[1755828717188,0.022,4284.8,4284.0,3.0]
[1755828717498,0.022,4284.8,4284.7,0.3025]
[1755828718007,0.022,4284.8,4284.7,2.63638568]
[1755828718155,0.022,4284.8,4284.7,0.7675]
[1755828718358,0.022,4284.8,4284.7,3.10138568]
[1755828718567,0.022,4284.8,4284.7,3.96826227]
[1755828718792,0.022,4284.8,4284.7,11.61526227]
[1755828719084,0.022,4284.8,4284.7,11.59192342]
[1755828719687,0.022,4284.8,4284.7,6.94492342]
[1755828719889,0.022,4284.8,4284.7,6.10138568]
[1755828720203,0.022,4284.8,4284.7,3.0]
[1755828720500,0.022,4284.8,4284.7,3.7675]
[1755828720701,0.022,4284.8,4284.7,3.0]
[1755828721695,0.022,4284.8,4284.7,3.7675]
[1755828723419,0.022,4284.8,4284.7,3.3025]
[1755828723574,0.022,4284.8,4284.7,3.0]
[1755828726213,0.022,4284.8,4284.2,0.465]
[1755828726506,0.022,4284.8,4284.7,0.701863]
[1755828729040,0.022,4284.8,4284.7,1.015463]
[1755828730032,0.022,4284.8,4284.7,6.78264868]
[1755828730540,0.022,4284.8,4284.7,7.18266315]
[1755828732211,0.022,4284.8,4284.7,0.701863]
[1755828732422,0.1187,4284.8,4284.7,0.701863]
[1755828732623,0.3424,4284.8,4283.5,2.76883384]
[1755828732829,0.3424,4284.8,4283.6,0.701993]
[1755828733014,0.1187,4284.8,4283.7,2.7910249]
[1755828733200,0.1187,4284.8,4283.8,0.4333]
[1755828733699,0.1187,4284.8,4283.8,3.4333]
[1755828733896,0.1187,4284.8,4283.8,2.76765112]
[1755828734122,0.022,4284.8,4284.0,2.33426704]
[1755828734342,0.022,4284.8,4284.2,3.0]
[1755828734507,0.022,4284.8,4284.2,5.33410825]
[1755828734698,0.022,4284.8,4284.3,0.4333]
[1755828734904,0.022,4284.8,4284.4,3.0]
[1755828735105,0.022,4284.8,4284.3,0.4333]
[1755828735508,0.022,4284.8,4284.3,3.4333]
[1755828735815,0.022,4284.8,4284.3,2.33409733]
[1755828736137,0.022,4284.8,4284.7,0.3136]
[1755828736722,0.022,4284.8,4284.7,3.08078568]
[1755828736916,0.022,4284.8,4284.7,0.7469]
[1755828737117,0.022,4284.8,4284.3,0.4333]
[1755828737316,0.022,4284.8,4283.8,1.27901817]
[1755828737537,0.022,4284.8,4284.3,3.0]
[1755828737735,0.022,4284.8,4284.5,3.0]
[1755828738041,0.022,4284.8,4284.7,0.3136]
[1755828738237,0.022,4284.8,4284.7,5.64748568]
[1755828738462,0.022,4284.8,4284.7,6.08078568]
[1755828738642,0.022,4284.8,4284.7,7.39095082]
[1755828740055,0.022,4284.8,4284.7,8.05095082]
[1755828741505,0.022,4284.8,4284.7,12.03595082]
[1755828743320,1.795,4287.5,4285.7,3.0]
[1755828743555,0.225,4287.4,4285.9,3.0]
[1755828743753,0.225,4287.4,4286.1,3.0]
[1755828743913,0.099,4286.2,4285.9,0.701623]
[1755828744112,0.3227,4286.2,4285.9,0.701623]
[1755828744312,0.099,4286.2,4285.9,0.701623]
[1755828744617,0.3227,4286.2,4285.9,0.701623]
[1755828744829,0.2237,4286.1,4285.9,0.701623]
[1755828745029,0.3227,4286.0,4285.9,0.701623]
[1755828746431,0.3227,4286.0,4285.2,0.17519594]
[1755828746614,1.795,4285.9,4284.6,5.33391657]
[1755828746815,18.42453236,4286.7,4285.8,0.701836]
[1755828746816,1.795,4286.7,4285.8,0.701836]
[1755828747222,0.099,4285.9,4285.8,0.701836]
[1755828747416,0.2237,4286.6,4285.8,0.701836]
[1755828747621,1.795,4286.7,4285.8,0.701836]
[1755828749042,0.02,4286.8,4285.9,0.02333232]
[1755828749223,0.02,4286.8,4286.0,0.4333]
[1755828749424,0.02,4286.8,4286.7,0.3136]
[1755828749849,0.02,4286.8,4286.7,0.7469]
[1755828750920,0.02,4286.8,4286.7,1.448419]
[1755828751325,0.02,4286.8,4286.7,0.701519]
[1755828751326,0.0223,4286.8,4286.7,0.701519]
[1755828753351,0.02,4286.8,4286.7,0.701519]
[1755828754044,0.0245,4286.8,4286.7,0.701519]
[1755828754817,0.2451,4286.8,4286.7,0.701519]
[1755828755555,0.0245,4286.8,4286.7,0.701519]
[1755828757054,0.2495,4286.8,4286.7,0.701519]
[1755828757423,0.2495,4286.8,4285.9,0.17949603]
[1755828757766,0.0245,4286.8,4286.6,0.701519]
[1755828758464,0.2495,4286.8,4286.6,0.701519]
[1755828758834,0.225,4286.7,4286.6,0.701519]
[1755828759034,0.0991,4286.7,4286.6,0.701519]
[1755828759962,4.0821,4286.7,4286.6,0.701519]
[1755828761655,4.003,4286.8,4286.6,1.013219]
[1755828761859,4.003,4286.8,4286.6,1.444719]
[1755828762060,0.3085,4286.7,4285.8,0.001]
[1755828762248,0.3085,4286.7,4285.8,3.001]
[1755828762450,4.003,4286.8,4286.6,0.3117]
[1755828762634,0.02,4286.8,4286.6,0.3117]
[1755828762960,0.02,4286.8,4286.7,0.4315]
[1755828763262,0.02,4286.8,4286.7,0.7432]
[1755828765666,0.02,4286.8,4286.7,6.77751579]
[1755828765837,0.02,4286.8,4286.7,5.35809944]
[1755828766262,0.02,4286.8,4286.7,7.69089623]
[1755828767332,0.02,4286.8,4286.7,5.35809944]
[1755828768757,0.02,4286.8,4286.7,4.013219]
[1755828769064,0.02,4286.8,4286.7,4.444719]
[1755828769654,0.02,4286.8,4286.7,4.013219]
[1755828770061,0.02,4286.8,4286.7,3.701519]
[1755828770360,0.02,4286.8,4286.7,4.444719]
[1755828772671,0.02,4286.8,4286.7,1.013219]
[1755828772848,0.1189,4286.8,4286.7,0.701519]
[1755828773054,0.3426,4286.8,4286.1,0.001]
[1755828773360,0.3426,4286.8,4286.5,0.701519]
[1755828773542,0.2237,4286.7,4286.5,0.701519]
[1755828773737,0.1002,4286.6,4286.5,0.701519]
[1755828774542,1.8952,4286.6,4286.5,0.701519]
[1755828774776,2.1177,4286.6,4286.5,0.701519]
[1755828774974,1.8939,4286.6,4286.1,0.001]
[1755828775155,1.8939,4286.6,4286.2,0.701519]
[1755828775356,1.795,4286.6,4286.3,0.4315]
[1755828775556,1.795,4286.6,4286.5,0.3117]
[1755828775873,0.02,4286.8,4286.5,0.8876719]
[1755828776080,0.02,4286.8,4286.6,0.4315]
[1755828776286,0.02,4286.8,4286.7,0.3117]
[1755828776641,0.02,4286.8,4286.7,6.07599679]
[1755828777556,0.02,4286.8,4286.7,6.73599679]
[1755828777763,0.02,4286.8,4286.7,7.83683278]
[1755828779285,0.225,4289.6,4286.7,7.83683278]
[1755828779286,0.02,4289.8,4286.9,0.66]
[1755828779489,1.815,4289.8,4287.7,5.64395272]
[1755828779779,1.815,4289.8,4287.7,9.62595272]
[1755828780153,1.815,4289.8,4287.7,6.07545272]
[1755828780355,0.225,4289.5,4287.7,7.09573299]
[1755828780556,0.225,4289.5,4287.7,11.07773299]
[1755828780883,0.02,4289.8,4287.7,11.73773299]
[1755828781092,0.02,4289.8,4287.7,7.75573299]
[1755828781292,0.245,4289.8,4287.7,11.73773299]
[1755828781759,0.02,4289.8,4287.7,11.73773299]
[1755828782169,0.02,4289.8,4287.7,11.73673299]
[1755828783075,0.02,4289.8,4287.7,12.43788099]
[1755828783380,0.245,4289.8,4287.7,8.45688099]
[1755828783678,0.225,4289.4,4287.7,11.77788099]
[1755828783842,0.225,4289.4,4287.7,7.79688099]
[1755828784048,0.225,4289.0,4287.7,9.44562827]
[1755828784242,0.02,4288.8,4287.7,6.01412827]
[1755828784459,0.02,4288.8,4287.7,1.012848]
[1755828784893,0.225,4288.7,4287.7,0.701148]
[1755828785189,0.225,4288.7,4287.7,3.701148]
[1755828785384,0.225,4288.7,4287.7,0.701148]
[1755828785589,0.225,4288.7,4287.7,3.701148]
[1755828785890,0.225,4288.7,4287.7,0.701148]
[1755828786183,0.119,4287.8,4287.7,0.701148]
[1755828787175,0.02,4287.8,4287.7,0.701148]
[1755828787679,0.119,4287.8,4287.7,0.701148]
[1755828788509,0.02,4287.8,4287.7,0.998548]
[1755828788652,0.02,4287.8,4287.7,1.446748]
[1755828788853,0.02,4287.8,4287.7,1.81381911]
[1755828789101,0.02,4287.8,4287.7,1.446748]
[1755828789746,0.02,4287.8,4287.7,3.77900072]
[1755828790195,0.02,4287.8,4287.7,1.446748]
[1755828790501,0.02,4287.8,4287.7,3.77900072]
[1755828791248,0.02,4287.8,4287.7,6.77900072]
[1755828791452,0.02,4287.8,4287.7,4.446748]
[1755828791864,0.02,4287.8,4287.7,3.998548]